bitfinex/quotes_BTCUSD_20250619
["timestamp","ask_amount","ask_price","bid_price","bid_amount"]
[1750324016484,0.7388683,104920.0,104910.0,0.9075232]
[1750324017541,0.35961323,104920.0,104910.0,0.9075232]
[1750324018720,0.39753494,104920.0,104910.0,0.9075232]
[1750324021618,0.39753494,104920.0,104910.0,0.6160232]
[1750324026476,0.75714817,104920.0,104910.0,0.6160232]
[1750324026704,0.77620885,104920.0,104910.0,0.6160232]
[1750324027356,0.77620885,104920.0,104910.0,0.9075232]
[1750324027541,1.11620885,104920.0,104910.0,0.9075232]
[1750324027756,1.11620885,104920.0,104910.0,0.8835232]
[1750324028185,1.10667842,104920.0,104910.0,0.8835232]
[1750324028750,1.11620885,104920.0,104910.0,0.8835232]
[1750324028974,1.11620876,104920.0,104910.0,0.8835232]
[1750324029646,0.91654713,104920.0,104910.0,0.8835232]
[1750324029860,1.12573928,104920.0,104910.0,0.8835232]
[1750324030077,1.11620876,104920.0,104910.0,0.8835232]
[1750324030495,1.12573919,104920.0,104910.0,0.8835232]
[1750324030997,1.11620876,104920.0,104910.0,0.8835232]
[1750324031987,1.12573919,104920.0,104910.0,0.8835232]
[1750324032412,0.3969823,104920.0,104910.0,0.8835232]
[1750324032625,0.75659553,104920.0,104910.0,0.8835232]
[1750324033047,0.76612605,104920.0,104910.0,0.8835232]
[1750324033306,1.13527007,104920.0,104910.0,0.41178356]
[1750324033522,1.13527007,104920.0,104910.0,0.48000505]
[1750324033523,1.17070095,104920.0,104910.0,0.48000505]
[1750324033737,1.19740168,104920.0,104910.0,0.48000505]
[1750324034452,1.38802383,104920.0,104910.0,0.38472621]
[1750324034822,1.19740241,104920.0,104910.0,0.38472621]
[1750324035036,1.19740241,104920.0,104910.0,0.39425755]
[1750324035817,0.47817595,104920.0,104910.0,0.39425755]
[1750324036036,1.19740241,104920.0,104910.0,0.39425755]
[1750324036245,1.18787134,104920.0,104910.0,0.39425755]
[1750324039220,1.17834036,104920.0,104910.0,0.39425755]
[1750324039441,1.16880948,104920.0,104910.0,0.39425755]
[1750324039927,1.14210948,104920.0,104910.0,0.39425755]
[1750324041207,1.15164036,104920.0,104910.0,0.39425755]
[1750324042446,1.37669276,104920.0,104910.0,0.38472657]
[1750324043140,1.38622383,104920.0,104910.0,0.39425809]
[1750324043370,1.38622383,104920.0,104910.0,0.39425764]
[1750324044282,1.37669331,104920.0,104910.0,0.39425764]
[1750324049808,1.35179331,104920.0,104910.0,0.39425764]
[1750324051489,1.16117189,104920.0,104910.0,0.39425764]
[1750324052321,1.14210984,104920.0,104910.0,0.39425719]
[1750324052542,0.40651327,104920.0,104910.0,0.39425719]
[1750324052754,1.10667842,104920.0,104910.0,0.44735719]
[1750324052971,1.09714817,104920.0,104910.0,0.44735719]
[1750324053175,1.1066786,104920.0,104910.0,0.44735719]
[1750324053597,0.75659598,104920.0,104910.0,0.44735719]
[1750324053840,0.75659598,104920.0,104910.0,0.41975719]
[1750324054667,1.1066786,104920.0,104910.0,0.41975719]
[1750324055053,1.11620921,104920.0,104910.0,0.41975719]
[1750324055294,1.11620921,104920.0,104910.0,0.44535719]
[1750324056182,1.1066786,104920.0,104910.0,0.44535719]
[1750324056449,1.11620912,104920.0,104910.0,0.44535719]
[1750324057836,0.73828741,104920.0,104910.0,0.54062704]
[1750324058374,0.77749258,104920.0,104910.0,0.54062704]
[1750324059879,0.76796206,104920.0,104910.0,0.54062704]
[1750324060489,0.77236388,104920.0,104910.0,0.54062704]
[1750324060696,0.40322031,104920.0,104910.0,0.54062704]
[1750324060975,0.77236388,104920.0,104910.0,0.54062704]
[1750324062911,0.06266785,104920.0,104910.0,0.54062704]
[1750324063140,0.77236388,104920.0,104910.0,0.54062704]
[1750324064241,0.05313742,104920.0,104910.0,0.54062704]
[1750324064463,0.41275065,104920.0,104910.0,0.54062704]
[1750324066638,0.40322031,104920.0,104910.0,0.54062704]
[1750324066881,0.41275065,104920.0,104910.0,0.54062704]
[1750324067391,0.04360708,104920.0,104910.0,0.63590597]
[1750324067630,0.75275056,104920.0,104910.0,0.63590597]
[1750324067866,0.74322031,104920.0,104910.0,0.63590597]
[1750324068855,0.74322031,104920.0,104910.0,0.92740597]
[1750324075845,1.10283354,104920.0,104910.0,0.92740597]
[1750324077359,1.11236388,104920.0,104910.0,0.92740597]
[1750324077565,1.11236388,104920.0,104910.0,0.90180597]
[1750324079790,1.1218944,104920.0,104910.0,0.90172597]
[1750324080213,0.94433413,104920.0,104910.0,0.90172597]
[1750324083660,1.03980452,104920.0,104910.0,0.48404878]
[1750324083845,1.61288366,104920.0,104910.0,0.2935]
[1750324084059,1.79540666,104920.0,104910.0,0.2935]
[1750324084254,1.54690276,104920.0,104910.0,0.2935]
[1750324084457,2.02461586,104920.0,104910.0,0.2935]
[1750324085348,1.64217261,104920.0,104910.0,0.2935]
[1750324085798,2.00178584,104920.0,104910.0,0.2935]
[1750324086543,2.00178584,104920.0,104910.0,0.002]
[1750324101919,0.55925505,104900.0,104890.0,0.0537]
[1750324102163,0.37813317,104890.0,104880.0,0.61611165]
[1750324102374,0.74728092,104890.0,104880.0,0.86527058]
[1750324102810,0.92842361,104890.0,104880.0,0.70185652]
[1750324103022,0.92842361,104890.0,104880.0,0.86523068]
[1750324103236,0.92842361,104890.0,104880.0,0.71139068]
[1750324103462,1.29503684,104890.0,104880.0,0.41989068]
[1750324104085,0.93542361,104890.0,104880.0,0.41989068]
[1750324104303,0.72967964,104890.0,104880.0,0.38061068]
[1750324104515,0.7201463,104890.0,104880.0,0.54398474]
[1750324104729,0.73921298,104890.0,104880.0,0.54398474]
[1750324105148,0.74874659,104890.0,104880.0,0.54398474]
[1750324105395,0.73921298,104890.0,104880.0,0.54398474]
[1750324105604,0.74874659,104890.0,104880.0,0.54398474]
[1750324105813,0.73921298,104890.0,104880.0,0.54398474]
[1750324106240,0.74874659,104890.0,104880.0,0.54398474]
[1750324106893,0.73921298,104890.0,104880.0,0.54402474]
[1750324107103,0.74874659,104890.0,104880.0,0.54402474]
[1750324107329,0.7487465,104890.0,104880.0,0.54402474]
[1750324108589,0.72967955,104890.0,104880.0,0.54402474]
[1750324108810,0.73921298,104890.0,104880.0,0.54402474]
[1750324109525,0.7487465,104890.0,104880.0,0.54402474]
[1750324109949,0.73921298,104890.0,104880.0,0.54402474]
[1750324110167,0.7487465,104890.0,104880.0,0.54402474]
[1750324110620,0.7773935,104890.0,104880.0,0.54402474]
[1750324111867,0.78692711,104890.0,104880.0,0.54402474]
[1750324112270,0.7773935,104890.0,104880.0,0.54402474]
[1750324112948,0.76785998,104890.0,104880.0,0.54402474]
[1750324113152,0.72967955,104890.0,104880.0,0.54402474]
[1750324114266,0.5108383,104890.0,104880.0,0.54402474]
[1750324114478,0.38967955,104890.0,104880.0,0.54402474]
[1750324115340,0.39921289,104890.0,104880.0,0.54402474]
[1750324116209,0.38967955,104890.0,104880.0,0.54402474]
[1750324116422,0.39921289,104890.0,104880.0,0.54402474]
[1750324116687,0.38967955,104890.0,104880.0,0.54402474]
[1750324116899,0.3801463,104890.0,104880.0,0.54402474]
[1750324117113,0.38967955,104890.0,104880.0,0.54402474]
[1750324117330,0.37061323,104890.0,104880.0,0.54402474]
[1750324117514,0.3801463,104890.0,104880.0,0.54402474]
[1750324118006,0.38967955,104890.0,104880.0,0.54402474]
[1750324118635,0.3801463,104890.0,104880.0,0.54402474]
[1750324118841,0.38917426,104890.0,104880.0,0.54402474]
[1750324119054,0.37964101,104890.0,104880.0,0.54402474]
[1750324119520,0.38917426,104890.0,104880.0,0.54402474]
[1750324119970,0.37964101,104890.0,104880.0,0.54402474]
[1750324120425,0.38917426,104890.0,104880.0,0.54402474]
[1750324121521,0.3987076,104890.0,104880.0,0.54402474]
[1750324121984,0.40824112,104890.0,104880.0,0.54402474]
[1750324122200,0.3987076,104890.0,104880.0,0.54402474]
[1750324122416,0.40824112,104890.0,104880.0,0.54402474]
[1750324122849,0.40824112,104890.0,104880.0,0.39014474]
[1750324123115,0.40824112,104890.0,104880.0,0.54402474]
[1750324123331,0.3987076,104890.0,104880.0,0.54402474]
[1750324123556,0.40824112,104890.0,104880.0,0.54402474]
[1750324124018,0.40824112,104890.0,104880.0,0.51622474]
[1750324124226,0.3987076,104890.0,104880.0,0.54502474]
[1750324125591,0.38917426,104890.0,104880.0,0.54502474]
[1750324126284,0.39870769,104890.0,104880.0,0.54502474]
[1750324127038,0.72917426,104890.0,104880.0,0.54502474]
[1750324128260,0.73870769,104890.0,104880.0,0.54502474]
[1750324128729,0.74824121,104890.0,104880.0,0.54502474]
[1750324128948,0.73870769,104890.0,104880.0,0.54502474]
[1750324129160,0.36956103,104890.0,104880.0,0.54502474]
[1750324129378,0.71964101,104890.0,104880.0,0.54502474]
[1750324129590,0.72917426,104890.0,104880.0,0.54502474]
[1750324131133,0.73870769,104890.0,104880.0,0.54502474]
[1750324131502,0.71964101,104890.0,104880.0,0.54502474]
[1750324132042,0.72917426,104890.0,104880.0,0.54502474]
[1750324134762,0.73870769,104890.0,104880.0,0.54502474]
[1750324134987,0.72917426,104890.0,104880.0,0.54502474]
[1750324136550,0.71964101,104890.0,104880.0,0.54502474]
[1750324136761,0.71010794,104890.0,104880.0,0.64029459]
[1750324137454,0.35049471,104890.0,104880.0,0.90463797]
[1750324137890,0.71010794,104890.0,104880.0,0.54502474]
[1750324142736,0.71010794,104890.0,104880.0,0.83652474]
[1750324143587,0.35961323,104890.0,104880.0,0.83652474]
[1750324143794,0.35961323,104900.0,104890.0,0.27457623]
[1750324143996,0.71922646,104900.0,104890.0,0.46512501]
[1750324144206,0.72875862,104900.0,104890.0,0.46512501]
[1750324144620,0.73829096,104900.0,104890.0,0.46512501]
[1750324145041,0.72875862,104900.0,104890.0,0.46512501]
[1750324145250,0.72875862,104900.0,104890.0,0.46912501]
[1750324146081,0.72875862,104900.0,104890.0,0.47412501]
[1750324147403,0.73829096,104900.0,104890.0,0.47412501]
[1750324147941,0.72875862,104900.0,104890.0,0.47412501]
[1750324148151,0.72875853,104900.0,104890.0,0.47412501]
[1750324148360,0.73829069,104900.0,104890.0,0.47412501]
[1750324148878,0.74782303,104900.0,104890.0,0.47412501]
[1750324149090,0.71922646,104900.0,104890.0,0.47412501]
[1750324152366,1.05922646,104900.0,104890.0,0.47412501]
[1750324154440,1.06875862,104900.0,104890.0,0.47412501]
[1750324154653,1.06875862,104900.0,104890.0,0.76562501]
[1750324154866,1.05922646,104900.0,104890.0,0.76562501]
[1750324155616,1.07829087,104900.0,104890.0,0.76562501]
[1750324155830,1.07829078,104900.0,104890.0,0.76562501]
[1750324156666,1.06875853,104900.0,104890.0,0.76562501]
[1750324156899,1.07829078,104900.0,104890.0,0.76562501]
[1750324157134,0.34,104900.0,104890.0,0.67035516]
[1750324157374,1.05922646,104900.0,104890.0,0.67035516]
[1750324157667,1.06875862,104900.0,104890.0,0.67035516]
[1750324160554,1.07829096,104900.0,104890.0,0.67035516]
[1750324160787,1.06875862,104900.0,104890.0,0.67035516]
[1750324161015,1.05922646,104900.0,104890.0,0.67035516]
[1750324161229,1.06875862,104900.0,104890.0,0.67035516]
[1750324161651,1.07829087,104900.0,104890.0,0.67035516]
[1750324163830,1.06875862,104900.0,104890.0,0.67035516]
[1750324164352,1.07829105,104900.0,104890.0,0.67035516]
[1750324164611,1.14012375,104900.0,104890.0,0.76885516]
[1750324165970,1.11392375,104900.0,104890.0,0.76885516]
[1750324166425,1.10439105,104900.0,104890.0,0.76885516]
[1750324167036,1.11392357,104900.0,104890.0,0.76885516]
[1750324167455,1.12345618,104900.0,104890.0,0.76885516]
[1750324168294,1.13298888,104900.0,104890.0,0.76885516]
[1750324168525,1.79509801,104900.0,104890.0,0.66404325]
[1750324168739,1.79509801,104900.0,104890.0,0.67357677]
[1750324169176,1.77603288,104900.0,104890.0,0.66404343]
[1750324170174,1.77603288,104900.0,104890.0,0.6831102]
[1750324170388,1.41641965,104900.0,104890.0,0.67357686]
[1750324170606,1.41641965,104900.0,104890.0,0.51977686]
[1750324171516,1.41641965,104900.0,104890.0,0.51024343]
[1750324171717,1.41641965,104900.0,104890.0,0.51977704]
[1750324171928,1.41641965,104900.0,104890.0,0.52931056]
[1750324172356,1.13049123,104900.0,104890.0,0.24734336]
[1750324172582,1.11392348,104900.0,104890.0,0.24734336]
[1750324172817,1.05922646,104900.0,104890.0,0.30234336]
[1750324173035,1.06875862,104900.0,104890.0,0.30234336]
[1750324173905,1.07829096,104900.0,104890.0,0.30234336]
[1750324174093,1.06875862,104900.0,104890.0,0.30234336]
[1750324174354,1.07829087,104900.0,104890.0,0.30234336]
[1750324174599,1.08782339,104900.0,104890.0,0.30234336]
[1750324174817,1.0878233,104900.0,104890.0,0.30234336]
[1750324175034,1.0878233,104900.0,104890.0,0.27384336]
[1750324175907,1.097356,104900.0,104890.0,0.24734336]
[1750324176787,1.10688879,104900.0,104890.0,0.24734336]
[1750324178595,1.097356,104900.0,104890.0,0.40130336]
[1750324186246,1.0878233,104900.0,104890.0,0.40130336]
[1750324187292,1.05922646,104900.0,104890.0,0.45580336]
[1750324187507,1.06875853,104900.0,104890.0,0.45580336]
[1750324188170,1.07829078,104900.0,104890.0,0.54960311]
[1750324189435,1.0878233,104900.0,104890.0,0.45572336]
[1750324189643,1.08782321,104900.0,104890.0,0.45572336]
[1750324190061,1.07829078,104900.0,104890.0,0.45572336]
[1750324190290,1.08782312,104900.0,104890.0,0.45572336]
[1750324191754,1.09735564,104900.0,104890.0,0.45572336]
[1750324191946,1.08782312,104900.0,104890.0,0.45572336]
[1750324196076,1.07829078,104900.0,104890.0,0.45572336]
[1750324197129,1.08782321,104900.0,104890.0,0.45572336]
[1750324198341,1.08782312,104900.0,104890.0,0.45572336]
[1750324199770,1.08782312,104900.0,104890.0,0.54951511]
[1750324200205,1.09735564,104900.0,104890.0,0.54951511]
[1750324200518,1.09735564,104900.0,104890.0,0.45572336]
[1750324201245,1.10688834,104900.0,104890.0,0.40122336]
[1750324201470,1.10688915,104900.0,104890.0,0.40122336]
[1750324201684,1.09735627,104900.0,104890.0,0.40122336]
[1750324201899,1.10688906,104900.0,104890.0,0.40122336]
[1750324202120,1.13478906,104900.0,104890.0,0.40122336]
[1750324202854,1.32544682,104900.0,104890.0,0.2378102]
[1750324203068,1.41118496,104900.0,104890.0,0.38211668]
[1750324203301,1.43848496,104900.0,104890.0,0.38211668]
[1750324204135,1.43848496,104900.0,104890.0,0.37258325]
[1750324204345,1.42895244,104900.0,104890.0,0.37258343]
[1750324204568,1.42895244,104900.0,104890.0,0.38211704]
[1750324205073,1.77903297,104900.0,104890.0,0.009]
[1750324205545,1.93299297,104900.0,104890.0,0.009]
[1750324206460,1.57337974,104900.0,104890.0,0.009]
[1750324207621,1.57337974,104900.0,104890.0,0.01853379]
[1750324207868,1.57337974,104900.0,104890.0,0.009]
[1750324208076,1.93299297,104900.0,104890.0,0.009]
[1750324208437,1.57337974,104900.0,104890.0,0.009]
[1750324209643,1.57337974,104900.0,104890.0,0.004]
[1750324209858,0.00953361,104890.0,104880.0,0.34525686]
[1750324210066,0.46441669,104890.0,104880.0,0.42753579]
[1750324211319,0.46741669,104890.0,104880.0,0.42753579]
[1750324211536,0.47695021,104890.0,104880.0,0.42753579]
[1750324211761,0.48195021,104890.0,104880.0,0.42753579]
[1750324212489,0.49148346,104890.0,104880.0,0.42753579]
[1750324212704,0.49148292,104890.0,104880.0,0.42753579]
[1750324212917,0.49148292,104890.0,104880.0,0.45463579]
[1750324213124,0.83148283,104890.0,104880.0,0.45463579]
[1750324214006,0.83148283,104890.0,104880.0,0.45463579]
[1750324215041,0.8219494,104890.0,104880.0,0.45463579]
[1750324215290,0.83148274,104890.0,104880.0,0.45463579]
[1750324215635,0.84101617,104890.0,104880.0,0.45463579]
[1750324217227,0.84101617,104890.0,104880.0,0.48043579]
[1750324217453,0.83148274,104890.0,104880.0,0.48043579]
[1750324218013,0.8219494,104890.0,104880.0,0.48043579]
[1750324218689,0.81241615,104890.0,104880.0,0.48043579]
[1750324219179,0.7171463,104890.0,104880.0,0.48043579]
[1750324223246,0.7171463,104890.0,104880.0,0.49953579]
[1750324223476,0.7171463,104890.0,104880.0,0.48043579]
[1750324224622,0.72667955,104890.0,104880.0,0.48043579]
[1750324228213,0.73621289,104890.0,104880.0,0.48043579]
[1750324228696,0.72667955,104890.0,104880.0,0.48043579]
[1750324231332,0.72667955,104890.0,104880.0,0.45463579]
[1750324231566,0.73621298,104890.0,104880.0,0.42753579]
[1750324231798,1.20062958,104890.0,104880.0,0.42753579]
[1750324232276,0.83148283,104890.0,104880.0,0.42753579]
[1750324235410,0.83148283,104890.0,104880.0,0.33213686]
[1750324235858,0.84101644,104890.0,104880.0,0.33213686]
[1750324236433,0.60844539,104890.0,104880.0,0.33213686]
[1750324236637,0.38821352,104890.0,104880.0,0.33213686]
[1750324237548,0.39774659,104890.0,104880.0,0.33213686]
[1750324239216,0.39774659,104890.0,104880.0,0.33213695]
[1750324239849,0.94803639,104890.0,104880.0,0.16876325]
[1750324240059,1.09670624,104890.0,104880.0,0.33221759]
[1750324240493,1.06910624,104890.0,104880.0,0.33221759]
[1750324241371,1.05957299,104890.0,104880.0,0.33221759]
[1750324242616,1.05957299,104890.0,104880.0,0.34175184]
[1750324243244,1.06910678,104890.0,104880.0,0.34175184]
[1750324243448,1.06910678,104890.0,104880.0,0.370386]
[1750324243664,0.48348382,104890.0,104880.0,0.35128536]
[1750324243869,0.47395012,104890.0,104880.0,0.35128536]
[1750324248848,0.48348382,104890.0,104880.0,0.35128536]
[1750324249067,0.84309705,104890.0,104880.0,0.35128536]
[1750324253492,1.37377299,104890.0,104880.0,0.33213777]
[1750324253699,1.39997299,104890.0,104880.0,0.33213777]
[1750324254395,1.39043956,104890.0,104880.0,0.33213777]
[1750324256549,1.39043956,104890.0,104880.0,0.34167202]
[1750324257831,1.39043956,104890.0,104880.0,0.33213777]
[1750324258748,1.39043956,104890.0,104880.0,0.32260343]
[1750324258961,1.39043956,104890.0,104880.0,0.33213795]
[1750324259385,1.39043956,104890.0,104880.0,0.34167238]
[1750324259823,1.39043956,104890.0,104880.0,0.35120672]
[1750324260251,1.39043956,104890.0,104880.0,0.18783238]
[1750324260477,0.01907004,104870.0,104860.0,0.24693049]
[1750324260700,0.01907004,104870.0,104860.0,0.2099029]
[1750324260701,0.96047467,104870.0,104860.0,0.2099029]
[1750324260925,0.97001028,104870.0,104860.0,0.19083049]
[1750324261142,0.97001028,104870.0,104860.0,0.01917295]
[1750324261143,0.98647503,104870.0,104860.0,0.01917295]
[1750324261403,0.97693969,104870.0,104860.0,0.1541]
[1750324261695,1.00493969,104870.0,104860.0,0.0001]
[1750324261926,1.00493969,104870.0,104860.0,0.0091]
[1750324262164,1.0338597,104870.0,104860.0,0.0151]
[1750324262403,1.5278597,104870.0,104860.0,0.0151]
[1750324262645,1.5278597,104870.0,104860.0,0.0091]
[1750324262646,1.88747293,104870.0,104860.0,0.0091]
[1750324263135,1.88747293,104870.0,104860.0,0.0141]
[1750324263356,1.88747293,104870.0,104860.0,0.0051]
[1750324264005,1.92675293,104870.0,104860.0,0.0051]
[1750324264842,2.02203186,104870.0,104860.0,0.0001]
[1750324265058,7.07203186,104870.0,104860.0,0.0001]
[1750324265253,7.07203186,104870.0,104860.0,0.0081]
[1750324265728,7.07203186,104870.0,104860.0,0.0011]
[1750324270921,7.10069186,104870.0,104860.0,0.0011]
[1750324274981,5.86785217,104870.0,104860.0,0.0011]
[1750324275194,7.10093186,104870.0,104860.0,0.0011]
[1750324279950,6.3985197,104870.0,104860.0,0.0011]
[1750324280191,6.3985197,104870.0,104860.0,0.26590344]
[1750324280192,1.32658982,104870.0,104860.0,0.26590344]
[1750324280424,1.0151952,104870.0,104860.0,0.28497566]
[1750324280648,1.00566032,104870.0,104860.0,0.28497566]
[1750324280873,0.63744219,104870.0,104860.0,0.27543969]
[1750324281095,0.62790694,104870.0,104860.0,0.27543969]
[1750324282646,0.61837142,104870.0,104860.0,0.27543969]
[1750324283648,0.95837142,104870.0,104860.0,0.27543969]
[1750324283925,0.95837142,104870.0,104860.0,0.26590344]
[1750324284157,0.95837142,104870.0,104860.0,0.28497585]
[1750324285568,0.72920349,104870.0,104860.0,0.28497585]
[1750324285778,0.71007892,104870.0,104860.0,0.29451192]
[1750324286668,0.90079123,104870.0,104860.0,0.29451192]
[1750324289050,0.90079123,104870.0,104860.0,0.29451137]
[1750324294100,0.91986209,104870.0,104860.0,0.29451082]
[1750324294321,0.72914978,104870.0,104860.0,0.29451082]
[1750324295294,0.72914914,104870.0,104860.0,0.29451082]
[1750324296577,0.75780314,104870.0,104860.0,0.29451082]
[1750324298750,0.76733866,104870.0,104860.0,0.29451082]
[1750324298946,0.77687427,104870.0,104860.0,0.29451082]
[1750324299333,0.77687427,104870.0,104860.0,0.58601082]
[1750324300062,0.95805161,104870.0,104860.0,0.57647494]
[1750324300990,1.31859466,104870.0,104860.0,0.57647494]
[1750324302343,1.12788235,104870.0,104860.0,0.58601082]
[1750324302730,1.11834674,104870.0,104860.0,0.58601082]
[1750324305167,1.21361659,104870.0,104860.0,0.58601082]
[1750324306183,0.85307332,104870.0,104860.0,0.58601082]
[1750324306832,0.41780347,104870.0,104860.0,0.58601082]
[1750324307525,0.40826749,104870.0,104860.0,0.58601082]
[1750324307731,0.41780292,104870.0,104860.0,0.58601082]
[1750324309461,0.77834619,104870.0,104860.0,0.58601082]
[1750324310407,0.77834619,104870.0,104860.0,0.74001082]
[1750324310639,0.78788171,104870.0,104860.0,0.74001082]
[1750324312982,0.97859402,104870.0,104860.0,0.73047494]
[1750324314268,0.96905905,104870.0,104860.0,0.72093897]
[1750324314462,0.96905905,104870.0,104860.0,0.69223897]
[1750324314686,1.0643289,104870.0,104860.0,0.69223897]
[1750324315411,0.33370711,104870.0,104860.0,0.3189]
[1750324315626,1.04525822,104870.0,104860.0,0.2926]
[1750324316064,1.0617227,104870.0,104860.0,0.2926]
[1750324317174,1.0617227,104870.0,104860.0,0.0011]
[1750324317389,0.96645285,104870.0,104860.0,0.01063652]
[1750324317612,0.24536631,104870.0,104860.0,0.21090344]
[1750324317824,0.94045285,104870.0,104860.0,0.22043978]
[1750324318970,0.94045285,104870.0,104860.0,0.22997603]
[1750324319196,1.0357227,104870.0,104860.0,0.22997603]
[1750324320801,1.0357227,104870.0,104860.0,0.23951219]
[1750324321021,0.7592757,104870.0,104860.0,0.23951155]
[1750324321298,0.40826749,104870.0,104860.0,0.29071155]
[1750324321511,0.4082674,104870.0,104860.0,0.29071155]
[1750324321716,0.76881067,104870.0,104860.0,0.29071155]
[1750324322127,0.77834592,104870.0,104860.0,0.29071155]
[1750324322333,0.76881067,104870.0,104860.0,0.29071155]
[1750324322553,0.77834601,104870.0,104860.0,0.29071155]
[1750324322778,0.76881067,104870.0,104860.0,0.29071155]
[1750324323230,0.38919727,104870.0,104860.0,0.58221155]
[1750324323418,0.39873206,104870.0,104860.0,0.58221155]
[1750324323642,0.36054327,104870.0,104860.0,0.58221155]
[1750324324088,0.37007815,104870.0,104860.0,0.58221155]
[1750324325022,0.37961321,104870.0,104860.0,0.58221155]
[1750324325473,0.37007815,104870.0,104860.0,0.58221155]
[1750324325665,0.37961321,104870.0,104860.0,0.58221155]
[1750324325874,0.37007815,104870.0,104860.0,0.58221155]
[1750324326030,0.37961321,104870.0,104860.0,0.58221155]
[1750324326235,0.37007815,104870.0,104860.0,0.58221155]
[1750324327534,0.37961321,104870.0,104860.0,0.58221155]
[1750324329405,0.37007815,104870.0,104860.0,0.58221155]
[1750324329665,0.37961303,104870.0,104860.0,0.58221155]
[1750324330819,0.38914809,104870.0,104860.0,0.58221155]
[1750324330939,0.38914809,104870.0,104860.0,0.29071155]
[1750324331569,0.39868334,104870.0,104860.0,0.29071155]
[1750324331878,0.38914809,104870.0,104860.0,0.29071155]
[1750324334342,0.39868343,104870.0,104860.0,0.29071155]
[1750324334723,0.39868334,104870.0,104860.0,0.29071155]
[1750324335222,0.40821868,104870.0,104860.0,0.29071155]
[1750324335756,0.39868334,104870.0,104860.0,0.29071155]
[1750324337749,0.38914809,104870.0,104860.0,0.29071155]
[1750324337970,0.39868334,104870.0,104860.0,0.29071155]
[1750324338276,0.01906976,104870.0,104860.0,0.29071155]
[1750324338505,0.37007806,104870.0,104860.0,0.29071155]
[1750324339429,0.36054327,104870.0,104860.0,0.29071155]
[1750324341833,0.36054327,104870.0,104860.0,0.38599048]
[1750324342056,0.41779892,104880.0,104870.0,0.27311805]
[1750324342264,0.74973954,104880.0,104870.0,0.42747805]
[1750324342474,0.7306206,104880.0,104870.0,0.42747805]
[1750324342681,0.73062051,104880.0,104870.0,0.42747805]
[1750324343541,0.74015467,104880.0,104870.0,0.42747805]
[1750324343787,0.74968901,104880.0,104870.0,0.42747805]
[1750324344711,0.75922353,104880.0,104870.0,0.42747805]
[1750324344951,0.74968901,104880.0,104870.0,0.42747805]
[1750324345905,0.75922353,104880.0,104870.0,0.42747805]
[1750324346142,0.74968901,104880.0,104870.0,0.42747805]
[1750324347819,0.75068901,104880.0,104870.0,0.42747805]
[1750324348291,0.74015467,104880.0,104870.0,0.42747805]
[1750324349747,0.74968901,104880.0,104870.0,0.42747805]
[1750324349983,0.75922353,104880.0,104870.0,0.42747805]
[1750324351689,0.03813699,104880.0,104870.0,0.42747805]
[1750324351923,0.75922344,104880.0,104870.0,0.42747805]
[1750324352656,0.76875796,104880.0,104870.0,0.42747805]
[1750324354353,1.10875796,104880.0,104870.0,0.42747805]
[1750324354564,1.10875796,104880.0,104870.0,0.40117805]
[1750324356854,1.09922344,104880.0,104870.0,0.40117805]
[1750324358028,1.10875796,104880.0,104870.0,0.40117805]
[1750324360218,1.09922344,104880.0,104870.0,0.40117805]
[1750324362038,1.10875796,104880.0,104870.0,0.40117805]
[1750324363311,1.09922344,104880.0,104870.0,0.40117805]
[1750324365945,1.08968901,104880.0,104870.0,0.40117805]
[1750324366356,1.08968892,104880.0,104870.0,0.42797805]
[1750324366820,1.09922335,104880.0,104870.0,0.42797805]
[1750324367047,1.08968892,104880.0,104870.0,0.42797805]
[1750324367741,1.08015467,104880.0,104870.0,0.42797805]
[1750324368456,0.34,104880.0,104870.0,0.59657289]
[1750324368674,0.36054327,104900.0,104890.0,0.27017623]
[1750324368897,1.08973354,104900.0,104890.0,0.42437623]
[1750324371060,1.09926561,104900.0,104890.0,0.42437623]
[1750324372178,1.08973354,104900.0,104890.0,0.42437623]
[1750324372425,1.08973354,104900.0,104890.0,0.42637623]
[1750324373353,1.08973354,104900.0,104890.0,0.42937623]
[1750324376427,1.09926579,104900.0,104890.0,0.42937623]
[1750324376637,0.368647,104900.0,104890.0,0.42937623]
[1750324376845,1.09926579,104900.0,104890.0,0.42937623]
[1750324377473,1.10879813,104900.0,104890.0,0.42937623]
[1750324377688,1.11833056,104900.0,104890.0,0.42937623]
[1750324377892,1.10879813,104900.0,104890.0,0.42937623]
[1750324379306,1.12786326,104900.0,104890.0,0.42937623]
[1750324379976,1.43055907,104900.0,104890.0,0.15908]
[1750324380198,1.43055907,104900.0,104890.0,0.36882307]
[1750324380199,1.45715907,104900.0,104890.0,0.36882307]
[1750324380635,1.43055907,104900.0,104890.0,0.36882307]
[1750324381768,1.42102664,104900.0,104890.0,0.36882307]
[1750324382896,0.98575679,104900.0,104890.0,0.36882307]
[1750324383536,0.98575679,104900.0,104890.0,0.3783565]
[1750324383975,0.98575679,104900.0,104890.0,0.38788984]
[1750324384995,0.95945679,104900.0,104890.0,0.38788984]
[1750324385207,0.96898967,104900.0,104890.0,0.38788984]
[1750324385763,0.96898967,104900.0,104890.0,0.3783565]
[1750324385998,0.96898967,104900.0,104890.0,0.36882307]
[1750324386637,0.96898967,104900.0,104890.0,0.3783565]
[1750324389006,0.76879867,104900.0,104890.0,0.3783565]
[1750324389241,0.76879867,104900.0,104890.0,0.38788966]
[1750324389675,0.03817907,104900.0,104890.0,0.38788966]
[1750324389893,0.76879777,104900.0,104890.0,0.41428966]
[1750324390336,0.77833029,104900.0,104890.0,0.41428966]
[1750324390967,0.78786299,104900.0,104890.0,0.41428966]
[1750324391180,0.78786299,104900.0,104890.0,0.67938966]
[1750324391402,0.78786263,104900.0,104890.0,0.67938966]
[1750324391616,0.79739533,104900.0,104890.0,0.67938966]
[1750324392515,0.74973354,104900.0,104890.0,0.53586859]
[1750324392751,0.72108654,104900.0,104890.0,0.53586859]
[1750324393204,0.06677035,104910.0,104900.0,0.27195532]
[1750324393205,0.03817525,104910.0,104900.0,0.27195532]
[1750324393412,0.39871843,104910.0,104900.0,0.27195532]
[1750324393667,0.36054327,104910.0,104900.0,0.27195532]
[1750324393878,0.44721643,104920.0,104910.0,0.24403442]
[1750324394108,0.95393611,104920.0,104910.0,0.42553442]
[1750324394317,0.61393602,104920.0,104910.0,0.42553442]
[1750324394523,0.61393593,104920.0,104910.0,0.42553442]
[1750324394986,0.62346654,104920.0,104910.0,0.42553442]
[1750324395471,0.62446654,104920.0,104910.0,0.42553442]
[1750324395689,0.61493593,104920.0,104910.0,0.42553442]
[1750324395895,0.61493593,104920.0,104910.0,0.50253197]
[1750324396102,0.62446654,104920.0,104910.0,0.42553442]
[1750324396308,0.6489124,104920.0,104910.0,0.42553442]
[1750324396534,0.6479124,104920.0,104910.0,0.42553442]
[1750324397305,0.6509124,104920.0,104910.0,0.42553442]
[1750324397524,0.6479124,104920.0,104910.0,0.42553442]
[1750324397773,0.59487525,104920.0,104910.0,0.42553442]
[1750324398428,0.60440577,104920.0,104910.0,0.42553442]
[1750324399538,0.60440586,104920.0,104910.0,0.42553442]
[1750324399968,0.62899451,104920.0,104910.0,0.71703442]